[Event "Live Chess"]
[Site "Chess.com"]
[Date "2023.05.21"]
[Round "-"]
[White "WombatIn_A_Box"]
[Black "McSlash1"]
[Result "0-1"]
[WhiteElo "570"]
[BlackElo "2021"]
[TimeControl "300"]
[EndTime "3:31:30 PDT"]
[Termination "McSlash1 won by checkmate"]

1. d4 {[%clk 0:04:46.4]} 1... Nf6 {[%clk 0:04:58.8]} 2. f3 {[%clk 0:04:43]} 2...
d5 {[%clk 0:04:57.7]} 3. e4 {[%clk 0:04:40.9]} 3... dxe4 {[%clk 0:04:57.6]} 4.
fxe4 {[%clk 0:04:39.7]} 4... Nxe4 {[%clk 0:04:57.5]} 5. Bd3 {[%clk 0:04:35.1]}
5... Nf6 {[%clk 0:04:56.8]} 6. Bg5 {[%clk 0:04:33.1]} 6... c6 {[%clk 0:04:54.1]}
7. Nf3 {[%clk 0:04:29.4]} 7... e6 {[%clk 0:04:52]} 8. Nc3 {[%clk 0:04:27.8]}
8... Be7 {[%clk 0:04:50.8]} 9. Qe2 {[%clk 0:04:26.4]} 9... O-O {[%clk
0:04:49.4]} 10. O-O-O {[%clk 0:04:25.3]} 10... h6 {[%clk 0:04:48.2]} 11. Be3
{[%clk 0:04:17.9]} 11... Ng4 {[%clk 0:04:45.7]} 12. Ne5 {[%clk 0:04:10.3]} 12...
Nxe3 {[%clk 0:04:44.1]} 13. Qxe3 {[%clk 0:04:08.9]} 13... Bg5 {[%clk 0:04:43.7]}
14. Rde1 {[%clk 0:03:54.2]} 14... Bxe3+ {[%clk 0:04:41.9]} 15. Rxe3 {[%clk
0:03:54.1]} 15... Nd7 {[%clk 0:04:38.9]} 16. Nxd7 {[%clk 0:03:50.9]} 16... Bxd7
{[%clk 0:04:38.8]} 17. Ne4 {[%clk 0:03:47.4]} 17... f5 {[%clk 0:04:33.7]} 18.
Nd6 {[%clk 0:03:45.8]} 18... Qg5 {[%clk 0:04:31.3]} 19. Kd2 {[%clk 0:03:39.4]}
19... f4 {[%clk 0:04:30.4]} 20. Re4 {[%clk 0:03:33.5]} 20... f3+ {[%clk
0:04:28.9]} 21. Re3 {[%clk 0:03:20.7]} 21... fxg2 {[%clk 0:04:26.2]} 22. Rg1
{[%clk 0:03:19]} 22... Rf2+ {[%clk 0:04:23.2]} 23. Ke1 {[%clk 0:03:16.2]} 23...
Qxe3+ {[%clk 0:04:21.6]} 24. Kd1 {[%clk 0:03:10.2]} 24... Qd2# {[%clk 0:04:21]}
0-1

[Event "Live Chess"]
[Site "Chess.com"]
[Date "2023.05.21"]
[Round "-"]
[White "DoYouLikeCurry"]
[Black "RockTroll"]
[Result "0-1"]
[WhiteElo "1397"]
[BlackElo "2234"]
[TimeControl "300"]
[EndTime "3:31:31 PDT"]
[Termination "RockTroll won by resignation"]

1. e4 {[%clk 0:04:58.2]} 1... d5 {[%clk 0:04:58.3]} 2. exd5 {[%clk 0:04:56.9]}
2... Qxd5 {[%clk 0:04:58.2]} 3. Nc3 {[%clk 0:04:56.2]} 3... Qd8 {[%clk
0:04:57.8]} 4. Nf3 {[%clk 0:04:53.7]} 4... Nf6 {[%clk 0:04:57.4]} 5. d4 {[%clk
0:04:53]} 5... Bg4 {[%clk 0:04:56.8]} 6. Be2 {[%clk 0:04:51.7]} 6... c6 {[%clk
0:04:55.1]} 7. O-O {[%clk 0:04:49.3]} 7... e6 {[%clk 0:04:53.8]} 8. Bg5 {[%clk
0:04:47.8]} 8... Nbd7 {[%clk 0:04:52.9]} 9. h3 {[%clk 0:04:39]} 9... Bxf3 {[%clk
0:04:51.1]} 10. Bxf3 {[%clk 0:04:38.9]} 10... Bd6 {[%clk 0:04:49.4]} 11. Bxf6
{[%clk 0:04:31.8]} 11... Nxf6 {[%clk 0:04:48.1]} 12. Ne4 {[%clk 0:04:30.2]}
12... Nxe4 {[%clk 0:04:47.4]} 13. Bxe4 {[%clk 0:04:29.6]} 13... Bc7 {[%clk
0:04:46.5]} 14. Qd3 {[%clk 0:04:27.2]} 14... Qd6 {[%clk 0:04:45.5]} 15. f4
{[%clk 0:04:15.4]} 15... O-O-O {[%clk 0:04:43.2]} 16. Bxh7 {[%clk 0:04:13.1]}
16... g6 {[%clk 0:04:37.5]} 17. Bxg6 {[%clk 0:04:08.5]} 17... fxg6 {[%clk
0:04:36.2]} 18. c3 {[%clk 0:04:06.8]} 18... g5 {[%clk 0:04:30.4]} 19. g3 {[%clk
0:03:53.2]} 19... Rxh3 {[%clk 0:04:26.7]} 20. Kg2 {[%clk 0:03:49.8]} 20... Rdh8
{[%clk 0:04:24.8]} 21. Kf3 {[%clk 0:03:47.5]} 21... gxf4 {[%clk 0:04:22.9]} 0-1

[Event "Live Chess"]
[Site "Chess.com"]
[Date "2023.05.21"]
[Round "-"]
[White "gmnorfolk"]
[Black "Richardallis"]
[Result "0-1"]
[WhiteElo "2111"]
[BlackElo "1881"]
[TimeControl "300"]
[EndTime "3:31:37 PDT"]
[Termination "Richardallis won by resignation"]

1. d4 {[%clk 0:04:58.3]} 1... c5 {[%clk 0:04:58.7]} 2. d5 {[%clk 0:04:54.6]}
2... d6 {[%clk 0:04:55.1]} 3. Nc3 {[%clk 0:04:51]} 3... e5 {[%clk 0:04:53]} 4.
e4 {[%clk 0:04:46.5]} 4... a6 {[%clk 0:04:51.8]} 5. f4 {[%clk 0:04:46]} 5... b5
{[%clk 0:04:48.8]} 6. fxe5 {[%clk 0:04:44.4]} 6... dxe5 {[%clk 0:04:47.8]} 7.
Nf3 {[%clk 0:04:43.3]} 7... Bg4 {[%clk 0:04:45.8]} 8. a4 {[%clk 0:04:33.6]} 8...
b4 {[%clk 0:04:44]} 9. Nb1 {[%clk 0:04:32.6]} 9... Bd6 {[%clk 0:04:39.6]} 10.
Nbd2 {[%clk 0:04:31.3]} 10... Nd7 {[%clk 0:04:36.7]} 11. a5 {[%clk 0:04:29.7]}
11... Ngf6 {[%clk 0:04:34.7]} 12. Bd3 {[%clk 0:04:28]} 12... O-O {[%clk
0:04:32.9]} 13. Nc4 {[%clk 0:04:26.7]} 13... Qe7 {[%clk 0:04:30.8]} 14. O-O
{[%clk 0:04:18.4]} 14... h6 {[%clk 0:04:18.7]} 15. Ne3 {[%clk 0:04:09.9]} 15...
Bc7 {[%clk 0:04:03.9]} 16. h3 {[%clk 0:04:05.2]} 16... Bxf3 {[%clk 0:04:02.2]}
17. Qxf3 {[%clk 0:04:01.9]} 17... g6 {[%clk 0:03:59.3]} 18. Nc4 {[%clk
0:03:56.3]} 18... Kg7 {[%clk 0:03:53.3]} 19. Be3 {[%clk 0:03:52.5]} 19... Bd6
{[%clk 0:03:49.8]} 20. Qf2 {[%clk 0:03:08.9]} 20... Rfc8 {[%clk 0:03:46.1]} 21.
Qh4 {[%clk 0:03:04.6]} 21... Rh8 {[%clk 0:03:34]} 22. Qf2 {[%clk 0:02:56.4]}
22... Rhc8 {[%clk 0:03:26.2]} 23. Qd2 {[%clk 0:02:54.1]} 23... Rh8 {[%clk
0:03:24]} 24. Rf2 {[%clk 0:02:51.4]} 24... Nh5 {[%clk 0:03:22.3]} 25. Raf1
{[%clk 0:02:43.2]} 25... g5 {[%clk 0:03:20.8]} 26. Kh2 {[%clk 0:02:39.8]} 26...
Nf4 {[%clk 0:03:15.8]} 27. g3 {[%clk 0:02:32.7]} 27... Rhf8 {[%clk 0:03:03.5]}
28. gxf4 {[%clk 0:02:26.8]} 28... exf4 {[%clk 0:03:02.1]} 29. Nxd6 {[%clk
0:02:21.7]} 29... Qxd6 {[%clk 0:02:57.2]} 30. Bxf4 {[%clk 0:02:18.3]} 30... gxf4
{[%clk 0:02:55.7]} 31. Rg2+ {[%clk 0:02:07.7]} 31... Kh8 {[%clk 0:02:52]} 32.
Qxf4 {[%clk 0:02:06.8]} 32... Qxf4+ {[%clk 0:02:50.2]} 33. Rxf4 {[%clk
0:02:05.4]} 33... Ne5 {[%clk 0:02:48.8]} 34. Rf5 {[%clk 0:02:03.8]} 34... f6
{[%clk 0:02:47.6]} 35. Rgf2 {[%clk 0:01:33.9]} 35... Kg7 {[%clk 0:02:45.3]} 36.
b3 {[%clk 0:01:32.6]} 36... Kg6 {[%clk 0:02:29.6]} 37. Be2 {[%clk 0:01:28.1]}
37... Kg7 {[%clk 0:02:25.1]} 38. Bh5 {[%clk 0:01:25.8]} 38... Rab8 {[%clk
0:02:21.6]} 39. Be2 {[%clk 0:01:23.2]} 39... Ra8 {[%clk 0:02:20.6]} 40. Rg2+
{[%clk 0:01:21.2]} 40... Kh8 {[%clk 0:02:19.2]} 41. h4 {[%clk 0:01:05.9]} 41...
Kh7 {[%clk 0:02:16.7]} 42. Kh3 {[%clk 0:01:03.8]} 42... Kh8 {[%clk 0:02:15.4]}
43. Rg6 {[%clk 0:00:56.9]} 43... Nxg6 {[%clk 0:02:13.7]} 0-1

[Event "Live Chess"]
[Site "Chess.com"]
[Date "2023.05.21"]
[Round "-"]
[White "garyjc"]
[Black "NatashaRegan"]
[Result "0-1"]
[WhiteElo "1045"]
[BlackElo "1715"]
[TimeControl "300"]
[EndTime "3:31:42 PDT"]
[Termination "NatashaRegan won on time"]

1. e4 {[%clk 0:04:57.6]} 1... e5 {[%clk 0:04:57.5]} 2. Nf3 {[%clk 0:04:49.9]}
2... Nc6 {[%clk 0:04:54.6]} 3. d4 {[%clk 0:04:47.7]} 3... exd4 {[%clk
0:04:51.3]} 4. Nxd4 {[%clk 0:04:45.7]} 4... Nxd4 {[%clk 0:04:50.1]} 5. Qxd4
{[%clk 0:04:42.2]} 5... Ne7 {[%clk 0:04:48.9]} 6. Nc3 {[%clk 0:04:27]} 6... Nc6
{[%clk 0:04:45.3]} 7. Qe3 {[%clk 0:04:11.3]} 7... b6 {[%clk 0:04:41.3]} 8. Bc4
{[%clk 0:03:34.9]} 8... Qf6 {[%clk 0:04:27.9]} 9. O-O {[%clk 0:03:30]} 9... Bc5
{[%clk 0:04:24]} 10. Qg3 {[%clk 0:03:18.7]} 10... Bd6 {[%clk 0:04:15.7]} 11. Qe3
{[%clk 0:02:56.3]} 11... O-O {[%clk 0:04:07.6]} 12. Nd5 {[%clk 0:02:52.7]} 12...
Qh4 {[%clk 0:03:58.6]} 13. h3 {[%clk 0:02:31.9]} 13... Ne5 {[%clk 0:03:53.9]}
14. Nf4 {[%clk 0:01:56.5]} 14... Nxc4 {[%clk 0:03:45.4]} 15. Qg3 {[%clk
0:01:12.5]} 15... Qxg3 {[%clk 0:03:34]} 16. fxg3 {[%clk 0:01:10.2]} 16... Bb7
{[%clk 0:03:31.6]} 17. b3 {[%clk 0:00:49.5]} 17... Ne5 {[%clk 0:03:27.2]} 18.
Bb2 {[%clk 0:00:29.6]} 18... Rae8 {[%clk 0:03:14.1]} 19. Rad1 {[%clk 0:00:19.5]}
19... Bxe4 {[%clk 0:03:10]} 20. Bxe5 {[%clk 0:00:15.2]} 20... Rxe5 {[%clk
0:03:06.2]} 21. c4 {[%clk 0:00:07.6]} 21... Bc5+ {[%clk 0:02:59.3]} 22. Kh1
{[%clk 0:00:05.9]} 22... d6 {[%clk 0:02:57.8]} 23. Nd5 {[%clk 0:00:00.3]} 23...
Bxd5 {[%clk 0:02:55]} 0-1

[Event "Live Chess"]
[Site "Chess.com"]
[Date "2023.05.21"]
[Round "-"]
[White "Ferrarifan27"]
[Black "RoaringKnights"]
[Result "1-0"]
[WhiteElo "2096"]
[BlackElo "1074"]
[TimeControl "300"]
[EndTime "3:31:45 PDT"]
[Termination "Ferrarifan27 won by checkmate"]

1. e4 {[%clk 0:04:59.2]} 1... e6 {[%clk 0:04:56.8]} 2. d4 {[%clk 0:04:58]} 2...
d5 {[%clk 0:04:51.3]} 3. e5 {[%clk 0:04:56.6]} 3... c5 {[%clk 0:04:47.8]} 4. c3
{[%clk 0:04:53.6]} 4... c4 {[%clk 0:04:46.4]} 5. Nf3 {[%clk 0:04:51.2]} 5... Nc6
{[%clk 0:04:45.2]} 6. Be2 {[%clk 0:04:49.3]} 6... Nge7 {[%clk 0:04:42.4]} 7. O-O
{[%clk 0:04:48.7]} 7... Ng6 {[%clk 0:04:41.1]} 8. Nbd2 {[%clk 0:04:46.3]} 8...
Be7 {[%clk 0:04:40.1]} 9. b3 {[%clk 0:04:44.4]} 9... f6 {[%clk 0:04:35.9]} 10.
exf6 {[%clk 0:04:41.8]} 10... Bxf6 {[%clk 0:04:32.5]} 11. bxc4 {[%clk
0:04:40.9]} 11... dxc4 {[%clk 0:04:31.2]} 12. Bxc4 {[%clk 0:04:40.5]} 12... Bd7
{[%clk 0:04:20.2]} 13. Re1 {[%clk 0:04:38.5]} 13... O-O {[%clk 0:04:14.3]} 14.
Bxe6+ {[%clk 0:04:36.3]} 14... Bxe6 {[%clk 0:04:13]} 15. Rxe6 {[%clk 0:04:36.2]}
15... Qd7 {[%clk 0:04:10.1]} 16. Re1 {[%clk 0:04:28.5]} 16... Rfe8 {[%clk
0:04:06.1]} 17. Ne4 {[%clk 0:04:25.7]} 17... Be7 {[%clk 0:03:54.7]} 18. d5
{[%clk 0:04:19.8]} 18... Red8 {[%clk 0:03:47]} 19. d6 {[%clk 0:04:07.1]} 19...
Bxd6 {[%clk 0:03:42.2]} 20. Qb3+ {[%clk 0:04:04.9]} 20... Kh8 {[%clk 0:03:37.9]}
21. Bg5 {[%clk 0:03:59.6]} 21... Re8 {[%clk 0:03:30.8]} 22. Nxd6 {[%clk
0:03:56.9]} 22... Qxd6 {[%clk 0:03:23.8]} 23. Rad1 {[%clk 0:03:54.9]} 23...
Rxe1+ {[%clk 0:03:20]} 24. Rxe1 {[%clk 0:03:52.7]} 24... Rd8 {[%clk 0:03:13.3]}
25. Qxb7 {[%clk 0:03:49]} 25... Na5 {[%clk 0:03:08.6]} 26. Qb5 {[%clk
0:03:46.5]} 26... Qd1 {[%clk 0:02:54.5]} 27. Bxd8 {[%clk 0:03:43]} 27... Qxd8
{[%clk 0:02:51.7]} 28. Re8+ {[%clk 0:03:38.6]} 28... Qxe8 {[%clk 0:02:50.2]} 29.
Qxe8+ {[%clk 0:03:38.5]} 29... Nf8 {[%clk 0:02:49.3]} 30. Qxf8# {[%clk
0:03:37.5]} 1-0

[Event "Live Chess"]
[Site "Chess.com"]
[Date "2023.05.21"]
[Round "-"]
[White "JamesWallman"]
[Black "LiamClery2020"]
[Result "0-1"]
[WhiteElo "853"]
[BlackElo "1994"]
[TimeControl "300"]
[EndTime "3:31:54 PDT"]
[Termination "LiamClery2020 won on time"]

1. e4 {[%clk 0:04:57.9]} 1... Nf6 {[%clk 0:04:57.8]} 2. e5 {[%clk 0:04:54.3]}
2... Nd5 {[%clk 0:04:56.7]} 3. d4 {[%clk 0:04:52.7]} 3... d6 {[%clk 0:04:55.9]}
4. Nf3 {[%clk 0:04:47]} 4... dxe5 {[%clk 0:04:54.8]} 5. dxe5 {[%clk 0:04:44.2]}
5... Bg4 {[%clk 0:04:53.5]} 6. Be2 {[%clk 0:04:37.5]} 6... e6 {[%clk 0:04:50.5]}
7. Nc3 {[%clk 0:04:27]} 7... Nc6 {[%clk 0:04:44.4]} 8. O-O {[%clk 0:04:22.7]}
8... Be7 {[%clk 0:04:41]} 9. h3 {[%clk 0:04:13.6]} 9... Bxf3 {[%clk 0:04:36.9]}
10. Bxf3 {[%clk 0:04:09.3]} 10... Nxc3 {[%clk 0:04:34.5]} 11. bxc3 {[%clk
0:04:03.5]} 11... O-O {[%clk 0:04:27.3]} 12. Qe2 {[%clk 0:03:56.2]} 12... Re8
{[%clk 0:04:12.9]} 13. Be3 {[%clk 0:03:51.2]} 13... Nxe5 {[%clk 0:04:10.1]} 14.
Rad1 {[%clk 0:03:42.2]} 14... Qc8 {[%clk 0:04:04.8]} 15. Bd4 {[%clk 0:03:31.6]}
15... Ng6 {[%clk 0:03:59]} 16. Rd3 {[%clk 0:03:17.5]} 16... c5 {[%clk
0:03:51.3]} 17. Be3 {[%clk 0:03:11.2]} 17... Qc7 {[%clk 0:03:46.4]} 18. Rfd1
{[%clk 0:03:03.4]} 18... Ne5 {[%clk 0:03:37.1]} 19. Bf4 {[%clk 0:02:54.5]} 19...
Nxf3+ {[%clk 0:03:31.4]} 20. Qxf3 {[%clk 0:02:48.5]} 20... Qb6 {[%clk
0:03:28.8]} 21. Rd7 {[%clk 0:02:38.3]} 21... Bf6 {[%clk 0:03:27.2]} 22. Qh5
{[%clk 0:02:19.5]} 22... g6 {[%clk 0:03:21.3]} 23. Qh6 {[%clk 0:02:11.4]} 23...
Bg7 {[%clk 0:03:19.3]} 24. Qh4 {[%clk 0:02:03.5]} 24... e5 {[%clk 0:03:13.2]}
25. Be3 {[%clk 0:01:55.2]} 25... Rac8 {[%clk 0:03:07.7]} 26. R1d5 {[%clk
0:01:37.3]} 26... Rc6 {[%clk 0:02:49.3]} 27. Qg4 {[%clk 0:01:24.5]} 27... Qb1+
{[%clk 0:02:42.1]} 28. Kh2 {[%clk 0:01:20]} 28... Qxc2 {[%clk 0:02:39.9]} 29.
Qf3 {[%clk 0:01:12.2]} 29... Rf6 {[%clk 0:02:34.6]} 30. Qg3 {[%clk 0:01:01.9]}
30... e4 {[%clk 0:02:28.6]} 31. Bg5 {[%clk 0:00:54.8]} 31... Rxf2 {[%clk
0:02:23.2]} 32. Rd8 {[%clk 0:00:38.9]} 32... Qa4 {[%clk 0:01:56]} 33. Qxf2
{[%clk 0:00:29.4]} 33... f5 {[%clk 0:01:43.8]} 34. Qxc5 {[%clk 0:00:22]} 34...
Rf8 {[%clk 0:01:27.7]} 35. Rxf8+ {[%clk 0:00:16.3]} 35... Bxf8 {[%clk
0:01:26.8]} 36. Rd8 {[%clk 0:00:11.3]} 36... Qe8 {[%clk 0:01:08.1]} 37. Rxe8
{[%clk 0:00:07.8]} 37... Kf7 {[%clk 0:01:07.6]} 38. Rb8 {[%clk 0:00:01.5]} 38...
Bxc5 {[%clk 0:01:06.2]} 0-1

[Event "Live Chess"]
[Site "Chess.com"]
[Date "2023.05.21"]
[Round "-"]
[White "KeithArkell"]
[Black "JoeRoot66"]
[Result "1-0"]
[WhiteElo "2497"]
[BlackElo "1916"]
[TimeControl "300"]
[EndTime "3:32:11 PDT"]
[Termination "KeithArkell won by resignation"]

1. d4 {[%clk 0:04:58.6]} 1... d5 {[%clk 0:04:58.4]} 2. Nf3 {[%clk 0:04:58]} 2...
Nf6 {[%clk 0:04:57.3]} 3. c4 {[%clk 0:04:57.5]} 3... e6 {[%clk 0:04:56.7]} 4.
cxd5 {[%clk 0:04:56.8]} 4... exd5 {[%clk 0:04:55.8]} 5. Nc3 {[%clk 0:04:56.5]}
5... c6 {[%clk 0:04:52.7]} 6. Qc2 {[%clk 0:04:54.6]} 6... Be7 {[%clk 0:04:51.2]}
7. Bg5 {[%clk 0:04:53.4]} 7... O-O {[%clk 0:04:48.7]} 8. e3 {[%clk 0:04:52.8]}
8... Nbd7 {[%clk 0:04:48]} 9. Bd3 {[%clk 0:04:51.9]} 9... Re8 {[%clk 0:04:34.9]}
10. O-O {[%clk 0:04:49.8]} 10... Nf8 {[%clk 0:04:29.5]} 11. Bxf6 {[%clk
0:04:46.1]} 11... Bxf6 {[%clk 0:04:28.2]} 12. b4 {[%clk 0:04:45.8]} 12... a6
{[%clk 0:04:25.6]} 13. a4 {[%clk 0:04:44.5]} 13... Bg4 {[%clk 0:03:57.8]} 14.
Nd2 {[%clk 0:04:37.2]} 14... Ng6 {[%clk 0:03:50.2]} 15. Bf5 {[%clk 0:04:33.3]}
15... Bxf5 {[%clk 0:03:40.5]} 16. Qxf5 {[%clk 0:04:31.4]} 16... Qc8 {[%clk
0:03:40.2]} 17. Qxc8 {[%clk 0:04:30.3]} 17... Raxc8 {[%clk 0:03:40.1]} 18. Rfc1
{[%clk 0:04:28.5]} 18... Be7 {[%clk 0:03:30]} 19. Rab1 {[%clk 0:04:27.2]} 19...
b5 {[%clk 0:03:25.5]} 20. a5 {[%clk 0:04:26.1]} 20... f6 {[%clk 0:03:10.8]} 21.
Rc2 {[%clk 0:04:25.1]} 21... f5 {[%clk 0:03:10.7]} 22. g3 {[%clk 0:04:23.3]}
22... Nf8 {[%clk 0:03:04.1]} 23. Ne2 {[%clk 0:04:22.4]} 23... Ne6 {[%clk
0:03:02]} 24. Nc1 {[%clk 0:04:18.1]} 24... g5 {[%clk 0:02:57]} 25. Nd3 {[%clk
0:04:16.8]} 25... Bd6 {[%clk 0:02:52.7]} 26. Rbc1 {[%clk 0:04:13.9]} 26... Nd8
{[%clk 0:02:39.6]} 27. Nf3 {[%clk 0:04:12.5]} 27... h6 {[%clk 0:02:28.8]} 28.
Nfe5 {[%clk 0:04:10.7]} 28... Bxe5 {[%clk 0:02:24.6]} 29. Nxe5 {[%clk
0:04:09.6]} 29... Re6 {[%clk 0:02:24.3]} 30. Rc5 {[%clk 0:04:05.3]} 30... Kf8
{[%clk 0:02:15.8]} 31. Rxd5 {[%clk 0:04:03.6]} 31... Nf7 {[%clk 0:01:53.3]} 32.
Nxf7 {[%clk 0:03:58.8]} 32... cxd5 {[%clk 0:01:47.8]} 33. Rxc8+ {[%clk
0:03:55.5]} 33... Kxf7 {[%clk 0:01:47.2]} 34. Rc5 {[%clk 0:03:49.4]} 34... Rd6
{[%clk 0:01:44.3]} 35. Kg2 {[%clk 0:03:46.3]} 35... Ke6 {[%clk 0:01:39.6]} 36.
Kf3 {[%clk 0:03:44.8]} 36... h5 {[%clk 0:01:35.8]} 37. h4 {[%clk 0:03:42.6]}
37... Kf6 {[%clk 0:01:23.4]} 38. hxg5+ {[%clk 0:03:40.3]} 38... Kxg5 {[%clk
0:01:22.6]} 39. Rc8 {[%clk 0:03:39.5]} 39... Kf6 {[%clk 0:01:15]} 40. Rf8+
{[%clk 0:03:36.8]} 40... Kg6 {[%clk 0:01:07.5]} 41. Kf4 {[%clk 0:03:32.7]} 41...
Rf6 {[%clk 0:01:03.5]} 42. Rxf6+ {[%clk 0:03:29.4]} 42... Kxf6 {[%clk
0:01:02.7]} 43. f3 {[%clk 0:03:28.9]} 43... Kg6 {[%clk 0:00:54.7]} 44. Ke5
{[%clk 0:03:27.8]} 44... Kg5 {[%clk 0:00:54.2]} 45. Kxd5 {[%clk 0:03:26.7]}
45... h4 {[%clk 0:00:53.1]} 46. gxh4+ {[%clk 0:03:25.2]} 46... Kxh4 {[%clk
0:00:53]} 47. Ke5 {[%clk 0:03:24.5]} 47... Kg3 {[%clk 0:00:52]} 48. Kxf5 {[%clk
0:03:23.1]} 48... Kxf3 {[%clk 0:00:51.9]} 49. e4 {[%clk 0:03:22.2]} 49... Ke3
{[%clk 0:00:50.8]} 50. d5 {[%clk 0:03:21.7]} 1-0

[Event "Live Chess"]
[Site "Chess.com"]
[Date "2023.05.21"]
[Round "-"]
[White "nigelst"]
[Black "WelshTiger"]
[Result "0-1"]
[WhiteElo "1708"]
[BlackElo "2332"]
[TimeControl "300"]
[EndTime "3:32:12 PDT"]
[Termination "WelshTiger won by resignation"]

1. e4 {[%clk 0:04:58.4]} 1... c5 {[%clk 0:04:58.6]} 2. Nf3 {[%clk 0:04:57.1]}
2... d6 {[%clk 0:04:58.1]} 3. Bb5+ {[%clk 0:04:55.8]} 3... Bd7 {[%clk
0:04:55.1]} 4. Bxd7+ {[%clk 0:04:54.5]} 4... Qxd7 {[%clk 0:04:55]} 5. O-O {[%clk
0:04:53.4]} 5... Nc6 {[%clk 0:04:54.3]} 6. c3 {[%clk 0:04:52.3]} 6... Nf6 {[%clk
0:04:52.7]} 7. Re1 {[%clk 0:04:50.4]} 7... e5 {[%clk 0:04:52]} 8. d4 {[%clk
0:04:47.9]} 8... cxd4 {[%clk 0:04:47.9]} 9. cxd4 {[%clk 0:04:46.5]} 9... Be7
{[%clk 0:04:47.6]} 10. dxe5 {[%clk 0:04:45]} 10... dxe5 {[%clk 0:04:45.5]} 11.
Qxd7+ {[%clk 0:04:42.8]} 11... Nxd7 {[%clk 0:04:44.1]} 12. Nc3 {[%clk 0:04:42]}
12... Nc5 {[%clk 0:04:39.8]} 13. Nd5 {[%clk 0:04:39.7]} 13... Rd8 {[%clk
0:04:25.7]} 14. Nc7+ {[%clk 0:04:26.9]} 14... Kd7 {[%clk 0:04:21.4]} 15. Nd5
{[%clk 0:04:25.5]} 15... Ke6 {[%clk 0:04:16.5]} 16. Nxe7 {[%clk 0:04:24]} 16...
Kxe7 {[%clk 0:04:14.7]} 17. Bg5+ {[%clk 0:04:18.5]} 17... f6 {[%clk 0:04:12.6]}
18. Bh4 {[%clk 0:04:16.9]} 18... Ke6 {[%clk 0:04:07.8]} 19. Rac1 {[%clk
0:04:10.1]} 19... b6 {[%clk 0:04:07.2]} 20. b4 {[%clk 0:04:00.9]} 20... Nxb4
{[%clk 0:04:04.5]} 21. a3 {[%clk 0:03:55.8]} 21... Nbd3 {[%clk 0:04:03.4]} 0-1

[Event "Live Chess"]
[Site "Chess.com"]
[Date "2023.05.21"]
[Round "-"]
[White "apl_trainer"]
[Black "WilliamofOrange16th"]
[Result "1/2-1/2"]
[WhiteElo "1775"]
[BlackElo "1871"]
[TimeControl "300"]
[EndTime "3:32:19 PDT"]
[Termination "Game drawn by agreement"]

1. d4 {[%clk 0:04:58.2]} 1... d5 {[%clk 0:04:59]} 2. c4 {[%clk 0:04:56.9]} 2...
c6 {[%clk 0:04:58.3]} 3. Nf3 {[%clk 0:04:55.6]} 3... Nf6 {[%clk 0:04:57.3]} 4.
Nc3 {[%clk 0:04:54.5]} 4... a6 {[%clk 0:04:56.6]} 5. c5 {[%clk 0:04:52.7]} 5...
Bf5 {[%clk 0:04:53.7]} 6. Qb3 {[%clk 0:04:50.8]} 6... Qc8 {[%clk 0:04:51.7]} 7.
Bf4 {[%clk 0:04:44.6]} 7... Nbd7 {[%clk 0:04:50.2]} 8. h3 {[%clk 0:04:39.1]}
8... e6 {[%clk 0:04:47.7]} 9. e3 {[%clk 0:04:37.2]} 9... h6 {[%clk 0:04:46.8]}
10. Be2 {[%clk 0:04:35.2]} 10... Be7 {[%clk 0:04:46]} 11. O-O {[%clk 0:04:33.6]}
11... O-O {[%clk 0:04:45.1]} 12. Rac1 {[%clk 0:04:29.4]} 12... Bd8 {[%clk
0:04:44.1]} 13. Na4 {[%clk 0:04:25.9]} 13... Bc7 {[%clk 0:04:42.8]} 14. Rfe1
{[%clk 0:03:43.1]} 14... Bxf4 {[%clk 0:04:37.4]} 15. exf4 {[%clk 0:03:41.8]}
15... Ne4 {[%clk 0:04:30]} 16. Ne5 {[%clk 0:03:38.9]} 16... Rb8 {[%clk
0:04:18.8]} 17. f3 {[%clk 0:03:30.5]} 17... Nef6 {[%clk 0:04:17.4]} 18. Bd3
{[%clk 0:03:17.3]} 18... Bxd3 {[%clk 0:04:13.3]} 19. Qxd3 {[%clk 0:03:14.5]}
19... Nh5 {[%clk 0:03:55.9]} 20. Qe3 {[%clk 0:03:05.2]} 20... Ng3 {[%clk
0:03:52.1]} 21. Kh2 {[%clk 0:03:01.2]} 21... Nf5 {[%clk 0:03:51.1]} 22. Qd3
{[%clk 0:02:59.5]} 22... f6 {[%clk 0:03:40.4]} 23. Ng6 {[%clk 0:02:36.1]} 23...
Re8 {[%clk 0:03:39.1]} 24. g4 {[%clk 0:02:34.2]} 24... Ne7 {[%clk 0:03:30.1]}
25. Rc2 {[%clk 0:02:25]} 25... Nxg6 {[%clk 0:03:25.8]} 26. Qxg6 {[%clk
0:02:23.5]} 26... Nf8 {[%clk 0:03:25]} 27. Qd3 {[%clk 0:02:20.4]} 27... Qd7
{[%clk 0:03:12.4]} 28. Nb6 {[%clk 0:02:17.4]} 28... Qf7 {[%clk 0:03:11.2]} 29.
b4 {[%clk 0:02:13.4]} 29... Nd7 {[%clk 0:03:10]} 30. Nxd7 {[%clk 0:02:04.7]}
30... Qxd7 {[%clk 0:03:09.9]} 31. Qg6 {[%clk 0:02:01.8]} 31... Qf7 {[%clk
0:03:08.3]} 32. Qxf7+ {[%clk 0:01:58.2]} 32... Kxf7 {[%clk 0:03:08.2]} 33. a4
{[%clk 0:01:56.2]} 33... Ra8 {[%clk 0:02:47.2]} 34. Kg3 {[%clk 0:01:53.1]} 34...
g6 {[%clk 0:02:44.9]} 35. a5 {[%clk 0:01:48.2]} 35... Re7 {[%clk 0:02:41.9]} 36.
Rce2 {[%clk 0:01:46.3]} 36... Rae8 {[%clk 0:02:40.9]} 37. h4 {[%clk 0:01:43.2]}
37... h5 {[%clk 0:02:33.9]} 38. g5 {[%clk 0:01:41.4]} 38... Rd7 {[%clk
0:02:04.4]} 39. Re3 {[%clk 0:01:34]} 39... Rde7 {[%clk 0:02:01.4]} 40. R1e2
{[%clk 0:01:32.4]} 40... Rd7 {[%clk 0:01:30.8]} 41. Re1 {[%clk 0:01:30.4]} 41...
Rde7 {[%clk 0:01:28.4]} 1/2-1/2